Cogmind - Beta 15 @@@ ROGUE MODE // 2025.08.28 @ 19:12:58 Player: seita Result: Destroyed by MN-Z1Q(R) with Subdweller Machine Gun Performance ------------- Evolutions (0) 0 Regions Visited (2) 400 Robots Destroyed (40) 200 Value Destroyed (803) 803 Prototype IDs (3) 60 Alien Tech Used (0) 0 Bonus (0) 0 TOTAL SCORE: 1463 Bonus ------- None Cogmind --------- Core Integrity 0/250 Matter 272/300 Energy 116/125 System Corruption 1% Temperature Cool (0) Movement Treading (320) Ox2 Location -10/Subcaves Parts ------- > --- POWER (1) -------- Light Ion Engine > --- PROPULSION (2) --- Light Treads Subdweller Monowheel > --- UTILITY (2) ------ High-capacity Storage Unit Hardened Light Armor Plating > --- WEAPON (2) ------- Riot Gun Subdweller Machine Gun > --- INVENTORY (20) --- Subdweller Power Source Light Treads Light Treads Wheel Wheel Wheel Subdweller Monowheel High-capacity Storage Unit Medium Matter Pod (100) Medium Matter Pod (100) Subdweller Optics Subdweller Optics Subdweller Optics Improved Terrain Scanner Seismic Detector Hardened Light Armor Plating Cobbler Unit Subdweller Beam Cannon Light Assault Rifle Peak State ------------ > --- POWER ------------ Light Ion Engine > --- PROPULSION ------- Light Treads Subdweller Monowheel > --- UTILITY ---------- High-capacity Storage Unit Hardened Light Armor Plating > --- WEAPON ----------- Riot Gun Subdweller Machine Gun > --- INVENTORY -------- Subdweller Power Source Light Treads Light Treads Wheel Wheel Wheel Subdweller Monowheel High-capacity Storage Unit Medium Matter Pod Medium Matter Pod Subdweller Optics Subdweller Optics Subdweller Optics Improved Terrain Scanner Seismic Detector Hardened Light Armor Plating Cobbler Unit Subdweller Beam Cannon Light Assault Rifle [Rating: 15] Favorites ----------- Power Ion Engine Engine Ion Engine Propulsion Light Treads Treads Light Treads Wheel Wheel Utility High-capacity Storage Unit Device Seismic Detector Storage High-capacity Storage Unit Protection Hardened Light Armor Plating Weapon EM Shotgun Energy Gun EM Shotgun Ballistic Gun Light Assault Rifle Build | -11 -10 -10 ------- Run | Yrd Mat Sub Slots Evolved . | . . . Power . | . . . Propulsion . | . . . Utility . | . . . Weapon . | . . . Parts Attached 38 | 7 15 16 Power 6 | 1 2 3 Engine 6 | 1 2 3 Core . | . . . Reactor . | . . . Propulsion 12 | 2 5 5 Treads 4 | . 3 1 Leg . | . . . Wheel 8 | 2 2 4 Hover . | . . . Flight . | . . . Utility 6 | 2 2 2 Device 1 | 1 . . Storage 2 | 1 1 . Processor . | . . . Hackware . | . . . Protection 3 | . 1 2 Artifact . | . . . Weapon 14 | 2 6 6 Energy Gun 10 | 1 6 3 Energy Cannon . | . . . Ballistic Gun 4 | 1 . 3 Ballistic Cannon . | . . . Launcher . | . . . Special Weapon . | . . . Impact Weapon . | . . . Slashing Weapon . | . . . Piercing Weapon . | . . . Special Melee Weapon . | . . . Unidentified Prototypes . | . . . Parts Lost 10 | . 1 9 Power 2 | . . 2 Propulsion 1 | . . 1 Utility 3 | . 1 2 Weapon 4 | . . 4 Highest Loss Streak 4 | . 1 4 To Critical Strikes . | . . . Average Backups 15 | 4 12 18 Power 2 | . 1 2 Propulsion 3 | 3 3 4 Utility 6 | . 3 9 Weapon 2 | . 3 1 Tool/Special . | . . . Unused Backups 22 | 1 5 16 Power 4 | . 2 2 Propulsion 5 | 1 2 2 Utility 11 | . . 11 Weapon 2 | . 1 1 Tool/Special . | . . . Average Slot Usage (%) 99 | . 99 99 Engine 13 | . 14 13 Treads 13 | . 13 14 Wheel 14 | . 14 13 Device 3 | . 8 . Storage 14 | . 14 14 Protection 9 | . 5 14 Energy Gun 14 | . 21 9 Ballistic Gun 13 | . 6 18 Peak Build Rating 15 | 8 11 15 Average Rating 10 | 5 10 11 On Entrance 6 | . 8 11 Naked Turns . | . . . Heaviest Build 54 | 12 54 54 Greatest Support 40 | 32 40 20 Greatest Overweight (x) 5 | . 5 5 Average Overweight (x) 3 | . 2 4 Largest Inventory Capacity 20 | 8 20 20 Average Capacity 16 | 7 14 20 Most Carried 20 | 8 20 20 Average Carried 15 | 4 12 19 Final Capacity 20 | 8 20 20 Final Carried 20 | 8 20 20 Class Distribution -------------------- 92% | Mutant 7% | Scavenger-Mutant Dominant Class ---------------- Mutant | -10/Materials Mutant | -10/Subcaves Resources | -11 -10 -10 ----------- Run | Yrd Mat Sub Matter Collected 943 | 276 221 446 Remotely . | . . . Salvage Created 1305 | 128 651 526 Parts 85 | 8 41 36 Haulers Intercepted 1 | . 1 . Recyclers Shooed 1 | . 1 . Parts Field Recycled . | . . . Retrieved Matter . | . . . Parts Self-Destructed 15 | . . 15 Prevented 1 | . . 1 Kills | -11 -10 -10 ------- Run | Yrd Mat Sub Combat Hostiles Destroyed 29 | . 13 16 Guns 29 | . 13 16 Classes Destroyed 10 | 2 6 2 Worker 2 | . 2 . Builder 1 | . 1 . Tunneler 3 | 2 1 . Hauler 1 | . 1 . Recycler 2 | 1 1 . Watcher 2 | . 2 . Swarmer 14 | . 6 8 Grunt 7 | . 7 . Sentry 1 | . . 1 Subdweller 7 | . . 7 Best Kill Streak 5 | 3 5 4 Combat Bots Only 4 | . 3 4 Max Kills in Single Turn 2 | 1 2 1 Gunslinging . | . . . Exploded . | . . . Melee . | . . . Uniques/NPCs Destroyed . | . . . Combat | -11 -10 -10 -------- Run | Yrd Mat Sub Hostile Shots Fired 157 | . 49 108 Missed 33 | . 12 21 Hits 124 | . 37 87 Projectile 124 | . 37 87 Critical Strikes 2 | . . 2 Damage Taken 1812 | 1 424 1387 Core 270 | . 92 178 Absorbed by Shields . | . . . Core Remaining (%) 100 | 100 . . Volleys Fired 109 | 9 40 60 Largest 2 | 2 2 2 Hottest 90 | 70 90 80 Shots Fired 218 | 18 80 120 Gun 218 | 18 80 120 Cannon . | . . . Launcher . | . . . Special . | . . . Kinetic 104 | 9 8 87 Thermal 9 | 9 . . Explosive . | . . . Electromagnetic 105 | . 72 33 Robot Hit Streak 43 | 4 11 43 Robot Miss Streak 7 | 2 7 3 Penetration Max . | . . . Secondary Targets 2 | . . 2 Max Gunslinging Chain 1 | . . 1 Shots Hit Robots 167 | 10 54 103 Core Hits 79 | 6 35 38 Critical Kills . | . . . Critical Parts Destroyed 1 | . . 1 Critical Strikes 1 | . . 1 Destroy 1 | . . 1 Melee Attacks . | . . . Impact . | . . . Slashing . | . . . Piercing . | . . . Sneak Attacks . | . . . Combat Hostiles . | . . . Follow-up Attacks . | . . . Damage Inflicted 2159 | 111 978 1070 Guns 1951 | 108 773 1070 Cannons . | . . . Explosions 185 | . 185 . Melee . | . . . Ramming 23 | 3 20 . Kinetic 729 | 46 18 665 Thermal 247 | 62 185 . Explosive . | . . . Electromagnetic 1160 | . 755 405 Impact . | . . . Slashing . | . . . Piercing . | . . . Highest Corruption 1 | . 1 1 Average Corruption 1 | . 1 1 Corruption Purged . | . . . Corruption Blocked . | . . . Effects 8 | . 3 5 Message Errors 3 | . 2 1 Heat Flow Errors 1 | . . 1 Data Loss (minor) 1 | . . 1 Misfires 1 | . . 1 Alerts 2 | . 1 1 Overload Shots . | . . . Overflow Damage 9 | . 9 . Projectiles . | . . . Explosions 9 | . 9 . Melee . | . . . Knockbacks 1 | . 1 . Impact 1 | . 1 . Kinetic . | . . . Secondary . | . . . Self-Inflicted Damage 86 | 1 85 . Shots 3 | . 3 . Rammed 7 | 1 6 . Targets Rammed 7 | 1 6 . Kicked . | . . . Crushed . | . . . Highest Temperature 321 | 90 321 190 Average Temperature 95 | 41 104 92 Received Heat Transfer 267 | . 102 165 Effects 5 | . 5 . Interference 4 | . 4 . Damage (minor) 1 | . 1 . Siege Activations . | . . . Martial Activations . | . . . Shielding Activations . | . . . Robots Disrupted . | . . . Combat Hostiles . | . . . Robots Corrupted . | . . . Combat Hostiles . | . . . Parts Fried 5 | . 4 1 Impact Corruptions . | . . . Robots Melted . | . . . Combat Hostiles . | . . . Parts Melted 2 | . . 2 Heat Transferred 435 | 185 250 . Parts Sabotaged . | . . . Parts Stolen . | . . . Parts Stripped . | . . . Power Chain Reactions 3 | . 3 . Alert | -11 -10 -10 ------- Run | Yrd Mat Sub Maximum Alert Level . | . . . Low Security (%) 100 | 100 100 . Level 1 . | . . . Level 2 . | . . . Level 3 . | . . . Level 4 . | . . . Level 5 . | . . . High Security . | . . . Max Security . | . . . Peak Influence 195 | 10 195 . Initial . | . . . Average 92 | 1 100 . Influence Increases 703 | 15 438 250 Destroy 0b10 Robot/C 440 | . 260 180 Destroy 0b10 Robot/NC 55 | 15 40 . Destroy Leader 66 | . 56 10 Successful Hack 36 | . 36 . Destroy Structure 16 | . 16 . Lose Combat Pursuer 90 | . 30 60 Influence Decreases 703 | 15 397 291 Entered New Map 21 | . . 21 Time Decay 638 | 15 387 236 Lost Part 44 | . 10 34 Squads Dispatched 1 | . 1 . Investigation . | . . . Extermination . | . . . Reinforcement 1 | . 1 . Assault . | . . . Garrison . | . . . Intercept . | . . . Searches Triggered . | . . . Construction Impeded . | . . . Haulers Reinforced . | . . . Active Scanning Responses . | . . . Cargo Convoy Interrupts . | . . . Stealth | -11 -10 -10 --------- Run | Yrd Mat Sub Distress Signals 1 | . 1 . Communications Jammed . | . . . Distress Signals . | . . . Times Spotted 43 | . 22 21 Peak Tracking Total 6 | . 4 6 Tactical Retreats 4 | . 2 2 Traps | -11 -10 -10 ------- Run | Yrd Mat Sub Traps Triggered 1 | . 1 . Indirectly . | . . . Trap Hack Attempts . | . . . Triggered . | . . . Disarmed . | . . . Reprogrammed . | . . . Reused . | . . . Traps Extracted . | . . . Installed . | . . . Triggered . | . . . Machines | -11 -10 -10 ---------- Run | Yrd Mat Sub Machines Disabled . | . . . Max in Single Turn . | . . . Machines Repaired . | . . . Machines Dismantled . | . . . Machines Sabotaged . | . . . Overloaded Fab Kills . | . . . Hacking | -11 -10 -10 --------- Run | Yrd Mat Sub Machines Accessed 7 | . 6 1 Terminals 6 | . 6 . Fabricators . | . . . Repair Stations . | . . . Recycling Units . | . . . Scanalyzers . | . . . Garrison Access . | . . . Total Hacks 24 | . 19 5 Successful 13 | . 8 5 Failed 11 | . 11 . Catastrophic 1 | . 1 . Database Lockouts . | . . . Manual . | . . . Terminals 19 | . 19 . Fabricators . | . . . Repair Stations . | . . . Recycling Units . | . . . Scanalyzers . | . . . Garrison Access . | . . . Terminal Hacks 13 | . 8 5 Record 5 | . . 5 Prototype ID Bank 3 | . 3 . Branch Access Points 1 | . 1 . Terminal Index 1 | . 1 . Locate Traps 2 | . 2 . Zone Layout 1 | . 1 . Fabricator Hacks . | . . . Repair Station Hacks . | . . . Recycling Unit Hacks . | . . . Scanalyzer . | . . . Garrison Access Hacks . | . . . Unauthorized Hacks . | . . . Terminals . | . . . Fabricators . | . . . Repair Stations . | . . . Recycling Units . | . . . Scanalyzers . | . . . Garrison Access . | . . . Data Cores Recovered . | . . . Used . | . . . Hacking Detections 5 | . 5 . Full Trace Events . | . . . Feedback Events . | . . . Feedback Blocked . | . . . Robot Schematics Acquired . | . . . Robots Built . | . . . Authchips . | . . . Time . | . . . Total Robot Build Rating . | . . . Part Schematics Acquired . | . . . Parts Built . | . . . Authchips . | . . . Time . | . . . Total Part Build Rating . | . . . Parts Repaired . | . . . Time . | . . . Parts Recycled . | . . . Recycled Matter . | . . . Retrieved Matter . | . . . Retrieved Components . | . . . Parts Scanalyzed . | . . . Part Schematics Acquired . | . . . Parts Damaged . | . . . Bothacking | -11 -10 -10 ------------ Run | Yrd Mat Sub Used RIF Installer . | . . . Robots Hacked . | . . . Non-combat . | . . . Combat . | . . . Robot Hacks Applied . | . . . Relay Couplers Released . | . . . Fabnet Peak Effective % . | . . . Robots Rewired . | . . . Allies Hacked . | . . . Hacks Repelled . | . . . Allies | -11 -10 -10 -------- Run | Yrd Mat Sub Total Allies . | . . . Largest Group . | . . . Highest-Rated Group . | . . . Highest-Rated Ally . | . . . Total Orders . | . . . Ally Attacks . | . . . Total Damage . | . . . Kills . | . . . Allies Corrupted . | . . . Allies Melted . | . . . Intel | -11 -10 -10 ------- Run | Yrd Mat Sub Active Infowar (turns) 627 | 16 611 . Seismic 627 | 16 611 . Robot Analysis Total . | . . . Derelict Logs Recovered 2 | . . 2 Drone Launches . | . . . Drone Recoveries . | . . . Exploration | -11 -10 -10 ------------- Run | Yrd Mat Sub Turns Passed 2315 | 93 1034 1188 Spaces Moved 1287 | 48 602 637 Core 1 | 1 . . Treads 94 | . 93 1 Legs . | . . . Wheels 1192 | 47 509 636 Hover . | . . . Flight . | . . . Fastest Speed 50 | 50 80 130 Average Speed 139 | 98 134 146 Slowest Speed 320 | 100 240 320 Overloaded Moves . | . . . Propulsion Burnouts . | . . . Robots Hopped . | . . . Potential Cave-ins . | . . . Cave-ins Triggered . | . . . Exploration Rate (%) 44 | 4 86 43 Regions Visited 2 Branch Regions 1 Pre-discovered Areas 1 | . . 1 Known Exits Taken . | . . . Unknown Exits Taken 2 | 1 1 . Scrap Searched . | . . . Spaces Dug . | . . . Terrain Destroyed 12 | . 12 . Melee . | . . . Projectile . | . . . AOE 12 | . 12 . Terrain Rammed . | . . . Walls Destroyed . | . . . Machines Disabled . | . . . Actions | -11 -10 -10 --------- Run | Yrd Mat Sub Total 1613 | 74 752 787 Wait 89 | . 42 47 Move 1285 | 47 601 637 Hop . | . . . Pick Up 44 | 9 23 12 Fast Attach 8 | 7 1 . Attach 10 | . 1 9 Detach . | . . . Swap 33 | . 20 13 Drop 28 | 1 18 9 Fire 109 | 9 40 60 Melee . | . . . Ram 6 | 1 5 . Kick . | . . . Crush 1 | . 1 . Escape Stasis . | . . . Rewire . | . . . Trap . | . . . Miscellaneous . | . . . Route ------- -11/Scrapyard -10/Materials (discovered 5 exits: [*Mat x2] / *Min x2 / *Sub) -10/Subcaves (discovered 2 exits: [*Mat] / [*Rec]) History --------- Turn | Location | Event 22 | -11/Scrapyard | Discovered new exit (range 15) 94 | -11/Scrapyard | Entered Materials 302 | -10/Materials | Build established: Mutant 340 | -10/Materials | Discovered new exit (range 11) 489 | -10/Materials | Discovered new exit (range 4) 573 | -10/Materials | Identified exit to Mines 865 | -10/Materials | Discovered new exit (range 7) 1031 | -10/Materials | Discovered new exit (range 13) 1128 | -10/Materials | Entered Subcaves 1248 | -10/Subcaves | Discovered new exit (range 12) 1376 | -10/Subcaves | A swath of the cavern ceiling suddenly collapsed 1598 | -10/Subcaves | Discovered new exit (range 5) 1635 | -10/Subcaves | Visited Clippyterm 1639 | -10/Subcaves | Learned location of Deep Caves (-6) 1639 | -10/Subcaves | Learned Factory garrison access intel 1925 | -10/Subcaves | Learned Materials security intel 1993 | -10/Subcaves | Core integrity fell below 50% 2061 | -10/Subcaves | Learned Materials security intel 2149 | -10/Subcaves | Lost 4 parts (1p2u1w) 2231 | -10/Subcaves | A swath of the cavern ceiling suddenly collapsed 2309 | -10/Subcaves | Core integrity fell below 20% 2316 | -10/Subcaves | Destroyed by MN-Z1Q(R) with Subdweller Machine Gun Last Messages --------------- Data stored: Materials security intel. 02102_ Lgt. Ion Engine destroyed. 02110_ Hrd. Light Armor Plating destroyed. 02114_ Lgt. Assault Rifle destroyed. 02118_ Hrd. Light Armor Plating destroyed. 02120_ Sub. Optics melted. 02120_ 4C-7U4(R) destroyed. 02125_ Acquired 36 matter. 02127_ Acquired Wheel. 02130_ Acquired Sub. Power Source. 02132_ Acquired Sub. Beam Cannon. 02135_ Acquired 3 matter. 02141_ Acquired Sub. Optics. 02181_ Subatomizers dissect the Corrupted Sub. Power Source. 02182_ Dropped Sub. Optics. 02182_ Acquired Riot Gun. 02183_ System corrupted: Component data lost. A swath of the cavern ceiling suddenly collapses. Map ----- +----------------------------------------------------+ | ?????????????????????????????????????????????????? | | ?????????????????????????????????????????????????? | | ?????????????????????????????????????????????????? | | ?????????????????????????????????????????????????? | | ?????????????????????????????????????????????????? | | ?????????????????????????????????????????????????? | | ?????????????????????????????????????????????????? | | ?????????????????????????????????????????????????? | | ?????????????????????????????????????????????????? | | ?????????????????????????????????????????????????? | | ?????????????????????????????????????????????????? | | ??????????????????????????????????????????###????? | | ?????????????????????????????????????????? ##???? | | ?????????????????????????????????????????? #???? | | ?????????????????????????????????????????? ????? | | ?????????????????????????????????????????? ????? | | ????????????????????? ###????????????????####????? | | ?????????????????????""""???????????????##""#????? | | ?????????????????????? "??????????????####"#????? | | ?????????????????????? "?????????????##"#"##????? | | ?????????????????????? #?????????????##""###????? | | ?????????????????????##""?????????????##"#""#????? | | ?????????????????????# #?????????????##" ###????? | | ??????????##?????""### #?????????????###"###????? | | ?????##??##"##??#""## ###???????????### "##????? | | ????## ##" "##?#"""" R@#???????????##" ###????? | | ????# "" ###"" " R #???????????### "##????? | | ????????#"" " "" " # #????????????##""##????? | | ????????#### """#### % #??????????#### ##?????? | | ############# #### ##?????????# #""##?????? | | # # # #!&## #?# ##????????# #?????? | | &% %## ### ###??????## ##?????? | | ####??##### #?????? | | ## #%# #### ## ##?????? | | ############# ## ### #??????? | | ????### ##?## !% # # ### #??????? | | #####" ## # ## # ## ## # #??????? | | # "" ##!%### ## ## #??????? | | ### ####### ### # ###??????? | | #""##! #### #????## # ##### ##???????? | | ###### ### ##?????### ##???#### #???????? | | ?????## " " #???????##= ##???????#"##???????? | | ?##???## " " ######??### %##????????#""????????? | | ## ## # "# ## # ##?# ! #?????????#"##???????? | | *%=" """" # #######?? "" ????????? | | """ """ ##### ## " ????????? | | #"#### ## ""#""##" ???## "" ????????? | | ?????##?### %######""#######"""" "" ????????? | | ??????????# ##???##"" ### * "#??????? ????????? | | ??????????# ##### ## ! %##??????? ????????? | +----------------------------------------------------+ Best States ------------- Heat Dissipation 25 Energy Generation 15 Energy Capacity 250 Matter Stores 300 Matter Capacity 300 Sight Range 16 Terrain Scan Density 10 Armor Coverage 150 Evasion (%) 44 Recoil Reduction 2 Item Schematics ----------------- None Robot Schematics ------------------ None Fabricated ------------ Nothing Repaired ---------- Nothing Alien Tech Used ----------------- None Achievements -------------- None Challenges ------------ None Game ------ Seed ColdAbsorptionReactor Manual? 0 Play Time 00:20:41 Cumulative 102.1 hours Start 2025.08.28 @ 18:32:41 End 2025.08.28 @ 19:12:58 Sessions 1 Manual Loads 0 Difficulty Rogue Special Mode None Game No. 78 Rogue 73 Adventurer 5 Explorer 0 Win Type - Total 1 Types 1/0/0/0/0/0/0/0/0/0 Lore% 56 Gallery% 48 Achievement% 42 Wizard Run 0 Options --------- Layout 1 ASCII 0 Keyboard 0 Movement Arrows Keybinds 0 Fullscreen 1 Font 16/SmallcapsGlow Map View 50x40 Zoom Use 0% Tactical HUD 1 Map Filters NONE Filters NONE Steam SD RUN: 140031a7-1f32-4371-bfbc-f485960c2034